fUSD/lending_fUSD_20250905
["ID","MTS","AMOUNT","RATE_DAILY","PERIOD"]
[383764815,1757109228451,-492.2,0.00039452,10]
[383764816,1757109228461,-590.75,0.00039452,10]
[383764817,1757109228471,-434.34,0.00039452,10]
[383764818,1757109228481,-400.0,0.00039452,10]
[383764819,1757109228491,-400.0,0.00039452,10]
[383764820,1757109228501,-423.04,0.00039452,10]
[383764821,1757109228510,-400.0,0.00039452,10]
[383764822,1757109228520,-474.82,0.00039452,10]
[383764823,1757109228530,-400.0,0.00039452,10]
[383764824,1757109228540,-400.0,0.00039452,10]
[383764825,1757109228550,-534.79854934,0.00039452,10]
[383764826,1757109228560,-400.0,0.00039452,10]
[383764827,1757109228570,-400.0,0.00039452,10]
[383764828,1757109228580,-400.0,0.00039452,10]
[383764829,1757109228589,-1028.14,0.00039452,10]
[383764830,1757109228599,-400.0,0.00039452,10]
[383764831,1757109228609,-2757.36,0.00039452,10]
[383764832,1757109228619,-400.0,0.00039452,10]
[383764833,1757109228629,-701.4,0.00039452,10]
[383764834,1757109228639,-404.16,0.00039452,10]
[383764835,1757109228650,-696.57,0.00039452,10]
[383764836,1757109228660,-766.81,0.00039452,10]
[383764837,1757109228671,-400.0,0.00039452,10]
[383764838,1757109228681,-438.53,0.00039452,10]
[383764839,1757109228691,-400.0,0.00039452,10]
[383764840,1757109228701,-400.0,0.00039452,10]
[383764841,1757109228711,-480.98,0.00039452,10]
[383764842,1757109228721,-425.95,0.00039452,10]
[383764843,1757109228731,-400.0,0.00039452,10]
[383764844,1757109229012,-400.0,0.00039452,10]
[383764845,1757109229035,-443.56,0.00039452,10]
[383764846,1757109229045,-400.0,0.00039452,10]
[383764847,1757109229054,-501.99,0.00039452,10]
[383764848,1757109229063,-400.0,0.00039452,10]
[383764849,1757109229072,-400.0,0.00039452,10]
[383764850,1757109229081,-441.78,0.00039452,10]
[383764851,1757109229091,-545.84,0.00039452,10]
[383764852,1757109229100,-439.9,0.00039452,10]
[383764853,1757109229110,-545.23,0.00039452,10]
[383764854,1757109229119,-400.0,0.00039452,10]
[383764855,1757109229128,-405.11,0.00039452,10]
[383764856,1757109229138,-177.87,0.00039452,10]
[383764857,1757109229148,-413.96,0.00039452,10]
[383764858,1757109229157,-470.74,0.00039452,10]
[383764859,1757109229168,-400.0,0.00039452,10]
[383764860,1757109229178,-1154.65,0.00039452,10]
[383764861,1757109229187,-400.0,0.00039452,10]
[383764862,1757109229197,-3534.15,0.00039452,10]
[383764863,1757109229206,-400.0,0.00039452,10]
[383764864,1757109229216,-400.0,0.00039452,10]
[383764865,1757109229226,-466.43,0.00039452,10]
[383764866,1757109229236,-400.0,0.00039452,10]
[383764867,1757109229246,-486.3,0.00039452,10]
[383764868,1757109229256,-552.13,0.00039452,10]
[383764869,1757109229266,-529.91,0.00039452,10]
[383764870,1757109229276,-524.16,0.00039452,10]
[383764871,1757109229285,-400.0,0.00039452,10]
[383764872,1757109229295,-836.63,0.00039452,10]
[383764873,1757109229304,-647.19,0.00039452,10]
[383764874,1757109229314,-400.0,0.00039452,10]
[383764875,1757109229323,-531.26,0.00039452,10]
[383764876,1757109229333,-400.0,0.00039452,10]
[383764877,1757109229342,-690.4,0.00039452,10]
[383764878,1757109229352,-400.0,0.00039452,10]
[383764879,1757109229361,-508.58,0.00039452,10]
[383764880,1757109229370,-424.68,0.00039452,10]
[383764881,1757109229380,-400.0,0.00039452,10]
[383764882,1757109229389,-1608.94,0.00039452,10]
[383764883,1757109229399,-496.78,0.00039452,10]
[383764884,1757109229408,-400.0,0.00039452,10]
[383764885,1757109229417,-414.05,0.00039452,10]
[383764886,1757109229427,-400.0,0.00039452,10]
[383764887,1757109229436,-400.0,0.00039452,10]
[383764888,1757109229445,-983.85,0.00039452,10]
[383764889,1757109229455,-522.3,0.00039452,10]
[383764890,1757109229464,-2782.91,0.00039452,10]
[383764891,1757109229473,-400.0,0.00039452,10]
[383764892,1757109229482,-650.54,0.00039452,10]
[383764893,1757109229492,-1361.26,0.00039452,10]
[383764894,1757109229501,-436.1,0.00039452,10]
[383764895,1757109229511,-400.0,0.00039452,10]
[383764896,1757109229520,-400.0,0.00039452,10]
[383764897,1757109229529,-649.0,0.00039452,10]
[383764898,1757109229539,-400.0,0.00039452,10]
[383764899,1757109229548,-442.27,0.00039452,10]
[383764900,1757109229557,-474.21,0.00039452,10]
[383764901,1757109229567,-400.0,0.00039452,10]
[383764902,1757109229577,-400.0,0.00039452,10]
[383764903,1757109229586,-603.16,0.00039452,10]
[383764904,1757109229595,-407.14,0.00039452,10]
[383764905,1757109229604,-436.72,0.00039452,10]
[383764906,1757109229614,-8442.03,0.00039452,10]
[383764907,1757109229623,-443.36,0.00039452,10]
[383764908,1757109229633,-621.71,0.00039452,10]
[383764909,1757109229643,-400.0,0.00039452,10]
[383764910,1757109229653,-400.0,0.00039452,10]
[383764911,1757109229662,-406.08,0.00039452,10]
[383764912,1757109229671,-400.0,0.00039452,10]
[383764913,1757109229681,-400.0,0.00039452,10]
[383764914,1757109229691,-1439.09,0.00039452,10]
[383764915,1757109229701,-475.57,0.00039452,10]
[383764916,1757109229711,-400.0,0.00039452,10]
[383764917,1757109229720,-2688.71,0.00039452,10]
[383764918,1757109229730,-1300.45,0.00039452,10]
[383764919,1757109229740,-530.86,0.00039452,10]
[383764920,1757109229749,-400.0,0.00039452,10]
[383764921,1757109229759,-400.0,0.00039452,10]
[383764922,1757109229768,-400.0,0.00039452,10]
[383764923,1757109229778,-423.37,0.00039452,10]
[383764924,1757109229789,-400.0,0.00039452,10]
[383764925,1757109229799,-442.37,0.00039452,10]
[383764926,1757109229809,-425.64,0.00039452,10]
[383764927,1757109229822,-290.02315216,0.00039452,10]
[383764928,1757109229831,-400.0,0.00039452,10]
[383764929,1757109229842,-4723.5,0.00039452,10]
[383764930,1757109229852,-514.62,0.00039452,10]
[383764931,1757109229862,-446.4,0.00039452,10]
[383764932,1757109229871,-400.0,0.00039452,10]
[383764933,1757109229882,-783.27,0.00039452,10]
[383764934,1757109229892,-425.55,0.00039452,10]
[383764935,1757109229903,-483.04,0.00039452,10]
[383764936,1757109229912,-440.05,0.00039452,10]
[383764937,1757109229922,-400.0,0.00039452,10]
[383764938,1757109229932,-400.0,0.00039452,10]
[383764939,1757109229941,-400.0,0.00039452,10]
[383764940,1757109229951,-483.3,0.00039452,10]
[383764941,1757109229960,-599.12,0.00039452,10]
[383764942,1757109229970,-400.0,0.00039452,10]
[383764943,1757109229980,-677.0,0.00039452,10]
[383764944,1757109229994,-1085.17,0.00039452,10]
[383764945,1757109230005,-400.0,0.00039452,10]
[383764946,1757109230014,-400.0,0.00039452,10]
[383764947,1757109230024,-3844.91,0.00039452,10]
[383764948,1757109230034,-1689.46,0.00039452,10]
[383764949,1757109230043,-421.08,0.00039452,10]
[383764950,1757109230053,-877.43,0.00039452,10]
[383764951,1757109230062,-400.0,0.00039452,10]
[383764952,1757109230071,-537.76,0.00039452,10]
[383764953,1757109230083,-436.27,0.00039452,10]
[383764954,1757109230092,-479.41,0.00039452,10]
[383764955,1757109230101,-931.34,0.00039452,10]
[383764956,1757109230111,-400.0,0.00039452,10]
[383764957,1757109230120,-400.0,0.00039452,10]
[383764958,1757109230129,-400.0,0.00039452,10]
[383764959,1757109230139,-400.0,0.00039452,10]
[383764960,1757109230148,-2095.01,0.00039452,10]
[383764961,1757109230158,-434.12,0.00039452,10]
[383764962,1757109230167,-1265.08,0.00039452,10]
[383764963,1757109230176,-292.63478117,0.00039452,10]
[383764964,1757109230186,-828.12,0.00039452,10]
[383764965,1757109230195,-490.29,0.00039452,10]
[383764966,1757109230205,-400.0,0.00039452,10]
[383764967,1757109230214,-407.95,0.00039452,10]
[383764968,1757109230224,-445.3,0.00039452,10]
[383764969,1757109230233,-1988.71,0.00039452,10]
[383764970,1757109230243,-400.0,0.00039452,10]
[383764971,1757109230252,-195.19179277,0.00039452,10]
[383764972,1757109230262,-400.0,0.00039452,10]
[383764973,1757109230271,-531.57,0.00039452,10]
[383764974,1757109230281,-428.34,0.00039452,10]
[383764975,1757109230290,-401.29,0.00039452,10]
[383764976,1757109230300,-720.58,0.00039452,10]
[383764977,1757109230310,-434.00802513,0.00039452,10]
[383764978,1757109230320,-400.0,0.00039452,10]
[383764979,1757109230329,-400.0,0.00039452,10]
[383764980,1757109230339,-400.0,0.00039452,10]
[383764981,1757109230348,-400.0,0.00039452,10]
[383764982,1757109230357,-471.02,0.00039452,10]
[383764983,1757109230367,-400.0,0.00039452,10]
[383764984,1757109230376,-2254.56,0.00039452,10]
[383764985,1757109230386,-786.84,0.00039452,10]
[383764986,1757109230395,-400.0,0.00039452,10]
[383764987,1757109230404,-1906.65,0.00039452,10]
[383764988,1757109230414,-400.0,0.00039452,10]
[383764989,1757109230423,-3337.86,0.00039452,10]
[383764990,1757109230433,-400.0,0.00039452,10]
[383764991,1757109230443,-404.67,0.00039452,10]
[383764992,1757109230452,-516.46,0.00039452,10]
[383764993,1757109230462,-911.18,0.00039452,10]
[383764994,1757109230471,-511.96,0.00039452,10]
[383764995,1757109230480,-488.47,0.00039452,10]
[383764996,1757109230490,-1977.28,0.00039452,10]
[383764997,1757109230500,-400.0,0.00039452,10]
[383764998,1757109230509,-457.95,0.00039452,10]
[383764999,1757109230518,-400.0,0.00039452,10]
[383765000,1757109230528,-400.0,0.00039452,10]
[383765001,1757109230537,-400.0,0.00039452,10]
[383765002,1757109230546,-527.02,0.00039452,10]
[383765003,1757109230557,-281.21157412,0.00039452,10]
[383765004,1757109230566,-689.76,0.00039452,10]
[383765005,1757109230576,-697.63,0.00039452,10]
[383765006,1757109230585,-433.65,0.00039452,10]
[383765007,1757109230595,-419.06,0.00039452,10]
[383765008,1757109230605,-6963.13,0.00039452,10]
[383765009,1757109230615,-400.0,0.00039452,10]
[383765010,1757109230624,-436.45,0.00039452,10]
[383765011,1757109230634,-400.0,0.00039452,10]
[383765012,1757109230643,-1232.95,0.00039452,10]
[383765013,1757109230653,-618.53,0.00039452,10]
[383765014,1757109230663,-400.0,0.00039452,10]
[383765015,1757109230672,-1178.96147,0.00039488,30]
[383765016,1757109230682,-13159.05,0.000395,30]
[383765017,1757109230691,-2227.17602,0.0003961,2]
[383765018,1757109230701,-150.0,0.00039661,120]
[383765019,1757109230710,-1178.96147,0.00039688,30]
[383765020,1757109230720,-1000.0,0.00039699,30]
[383765021,1757109230730,-816.34139449,0.000397,120]
[383765022,1757109230739,-150.0,0.00039712,120]
[383765023,1757109230749,-499.98,0.00039726,60]
[383765024,1757109230758,-300.1,0.00039726,60]
[383765025,1757109230768,-339.30249,0.00039726,10]
[383765026,1757109230778,-634.468343,0.00039726,10]
[383765027,1757109230788,-400.0,0.00039726,10]
[383765028,1757109230798,-400.0,0.00039726,10]
[383765029,1757109230808,-400.0,0.00039726,10]
[383765030,1757109230817,-400.0,0.00039726,10]
[383765031,1757109230827,-455.46,0.00039726,10]
[383765032,1757109230837,-417.8,0.00039726,10]
[383765033,1757109230846,-400.0,0.00039726,10]
[383765034,1757109230856,-400.0,0.00039726,10]
[383765035,1757109230866,-400.0,0.00039726,10]
[383765036,1757109230876,-400.0,0.00039726,10]
[383765037,1757109230887,-400.0,0.00039726,10]
[383765038,1757109230896,-400.0,0.00039726,10]
[383765039,1757109230906,-400.0,0.00039726,10]
[383765040,1757109230916,-400.0,0.00039726,10]
[383765041,1757109230925,-400.0,0.00039726,10]
[383765042,1757109230936,-400.0,0.00039726,10]
[383765043,1757109230946,-400.0,0.00039726,10]
[383765044,1757109230956,-944.57,0.00039726,10]
[383765045,1757109230965,-400.0,0.00039726,10]
[383765046,1757109230974,-300.0,0.00039726,10]
[383765047,1757109230987,-846.07,0.00039726,10]
[383765048,1757109230998,-400.0,0.00039726,10]
[383765049,1757109231007,-400.0,0.00039726,10]
[383765050,1757109231017,-400.0,0.00039726,10]
[383765051,1757109231027,-400.0,0.00039726,10]
[383765052,1757109231043,-400.0,0.00039726,10]
[383765053,1757109231062,-400.0,0.00039726,10]
[383765054,1757109231080,-400.0,0.00039726,10]
[383765055,1757109231100,-564.87,0.00039726,10]
[383765056,1757109231117,-765.62,0.00039726,10]
[383765057,1757109231136,-400.0,0.00039726,10]
[383765058,1757109231156,-400.0,0.00039726,10]
[383765059,1757109231176,-502.75167136,0.00039726,10]
[383765060,1757109231194,-400.0,0.00039726,10]
[383765061,1757109231214,-400.0,0.00039726,10]
[383765062,1757109231230,-433.33,0.00039726,10]
[383765063,1757109231246,-1155.55,0.00039726,10]
[383765064,1757109231261,-400.0,0.00039726,10]
[383765065,1757109231278,-400.0,0.00039726,10]
[383765066,1757109231294,-436.18417356,0.00039726,10]
[383765067,1757109231310,-496.36952649,0.00039726,10]
[383765068,1757109231324,-678.29,0.00039726,10]
[383765069,1757109231340,-405.24,0.00039726,10]
[383765070,1757109231357,-239.73054531,0.00039726,10]
[383765071,1757109231373,-414.11,0.00039726,10]
[383765072,1757109231388,-413.3,0.00039726,10]
[383765073,1757109231403,-400.0,0.00039726,10]
[383765074,1757109231418,-400.0,0.00039726,10]
[383765075,1757109231434,-400.0,0.00039726,10]
[383765076,1757109231450,-400.0,0.00039726,10]
[383765077,1757109231464,-418.03,0.00039726,10]
[383765078,1757109231479,-400.0,0.00039726,10]
[383765079,1757109231495,-400.0,0.00039726,10]
[383765080,1757109231512,-400.0,0.00039726,10]
[383765081,1757109231527,-400.0,0.00039726,10]
[383765082,1757109231549,-400.0,0.00039726,10]
[383765083,1757109231565,-400.0,0.00039726,10]
[383765084,1757109231582,-420.25,0.00039726,10]
[383765085,1757109231599,-437.75,0.00039726,10]
[383765086,1757109231615,-400.0,0.00039726,10]
[383765087,1757109231631,-506.4,0.00039726,10]
[383765088,1757109231647,-437.87,0.00039726,10]
[383765089,1757109231663,-400.0,0.00039726,10]
[383765090,1757109231680,-400.0,0.00039726,10]
[383765091,1757109231696,-451.2,0.00039726,10]
[383765092,1757109231712,-392.96179188,0.00039726,10]
[383765093,1757109231728,-507.92,0.00039726,10]
[383765094,1757109231744,-400.0,0.00039726,10]
[383765095,1757109231760,-400.0,0.00039726,10]
[383765096,1757109231776,-463.31551904,0.00039726,10]
[383765097,1757109231792,-400.0,0.00039726,10]
[383765098,1757109231808,-400.0,0.00039726,10]
[383765099,1757109231824,-461.35,0.00039726,10]
[383765100,1757109231840,-458.84,0.00039726,10]
[383765101,1757109231857,-428.49,0.00039726,10]
[383765102,1757109231872,-1054.45,0.00039726,10]
[383765103,1757109231888,-409.45,0.00039726,10]
[383765104,1757109231904,-400.0,0.00039726,10]
[383765105,1757109231918,-400.0,0.00039726,10]
[383765106,1757109231936,-542.29,0.00039726,10]
[383765107,1757109231951,-508.21,0.00039726,10]
[383765108,1757109231967,-400.0,0.00039726,10]
[383765109,1757109231981,-400.0,0.00039726,10]
[383765110,1757109231998,-493.63,0.00039726,10]
[383765111,1757109232013,-425.32,0.00039726,10]
[383765112,1757109232028,-518.21,0.00039726,10]
[383765113,1757109232044,-449.3,0.00039726,10]
[383765114,1757109232060,-510.04,0.00039726,10]
[383765115,1757109232075,-414.48,0.00039726,10]
[383765116,1757109232089,-400.0,0.00039726,10]
[383765117,1757109232104,-400.0,0.00039726,10]
[383765118,1757109232118,-970.87,0.00039726,10]
[383765119,1757109232132,-490.71,0.00039726,10]
[383765120,1757109232150,-436.72,0.00039726,10]
[383765121,1757109232166,-414.95,0.00039726,10]
[383765122,1757109232180,-400.0,0.00039726,10]
[383765123,1757109232194,-400.0,0.00039726,10]
[383765124,1757109232209,-447.82,0.00039726,10]
[383765125,1757109232224,-647.6,0.00039726,10]
[383765126,1757109232239,-275.57499207,0.00039726,10]
[383765127,1757109232254,-425.6,0.00039726,10]
[383765128,1757109232270,-490.57,0.00039726,10]
[383765129,1757109232285,-400.0,0.00039726,10]
[383765130,1757109232300,-641.44,0.00039726,10]
[383765131,1757109232315,-401.8,0.00039726,10]
[383765132,1757109232330,-419.23,0.00039726,10]
[383765133,1757109232345,-403.59,0.00039726,10]
[383765134,1757109232360,-400.0,0.00039726,10]
[383765135,1757109232374,-400.0,0.00039726,10]
[383765136,1757109232389,-400.0,0.00039726,10]
[383765137,1757109232405,-548.51,0.00039726,10]
[383765138,1757109232420,-452.54,0.00039726,10]
[383765139,1757109232436,-400.0,0.00039726,10]
[383765140,1757109232451,-440.39,0.00039726,10]
[383765141,1757109232465,-679.14,0.00039726,10]
[383765142,1757109232480,-433.62,0.00039726,10]
[383765143,1757109232495,-400.0,0.00039726,10]
[383765144,1757109232511,-400.0,0.00039726,10]
[383765145,1757109232527,-589.1,0.00039726,10]
[383765146,1757109232542,-551.08,0.00039726,10]
[383765147,1757109232558,-415.82,0.00039726,10]
[383765148,1757109232574,-576.99,0.00039726,10]
[383765149,1757109232589,-400.0,0.00039726,10]
[383765150,1757109232604,-455.37,0.00039726,10]
[383765151,1757109232618,-410.32,0.00039726,10]
[383765152,1757109232632,-400.0,0.00039726,10]
[383765153,1757109232646,-497.74,0.00039726,10]
[383765154,1757109232661,-498.14,0.00039726,10]
[383765155,1757109232676,-878.01,0.00039726,10]
[383765156,1757109232692,-400.0,0.00039726,10]
[383765157,1757109232707,-400.0,0.00039726,10]
[383765158,1757109232724,-1227.44,0.00039726,10]
[383765159,1757109232738,-400.0,0.00039726,10]
[383765160,1757109232754,-601.8,0.00039726,10]
[383765161,1757109232769,-400.0,0.00039726,10]
[383765162,1757109232783,-404.89,0.00039726,10]
[383765163,1757109232799,-400.0,0.00039726,10]
[383765164,1757109232813,-400.0,0.00039726,10]
[383765165,1757109232828,-414.05,0.00039726,10]
[383765166,1757109232844,-562.13,0.00039726,10]
[383765167,1757109232859,-400.0,0.00039726,10]
[383765168,1757109232875,-400.0,0.00039726,10]
[383765169,1757109232890,-457.02,0.00039726,10]
[383765170,1757109232905,-400.0,0.00039726,10]
[383765171,1757109232921,-519.36,0.00039726,10]
[383765172,1757109232937,-400.0,0.00039726,10]
[383765173,1757109232952,-400.0,0.00039726,10]
[383765174,1757109232967,-400.0,0.00039726,10]
[383765175,1757109232982,-400.0,0.00039726,10]
[383765176,1757109233000,-464.19,0.00039726,10]
[383765177,1757109233015,-167.78,0.00039726,10]
[383765178,1757109233030,-509.57,0.00039726,10]
[383765179,1757109233044,-400.0,0.00039726,10]
[383765180,1757109233060,-400.0,0.00039726,10]
[383765181,1757109233075,-400.0,0.00039726,10]
[383765182,1757109233089,-400.0,0.00039726,10]
[383765183,1757109233104,-536.82,0.00039726,10]
[383765184,1757109233119,-400.0,0.00039726,10]
[383765185,1757109233133,-400.0,0.00039726,10]
[383765186,1757109233148,-456.25,0.00039726,10]
[383765187,1757109233164,-400.0,0.00039726,10]
[383765188,1757109233178,-400.0,0.00039726,10]
[383765189,1757109233193,-400.0,0.00039726,10]
[383765190,1757109233208,-400.0,0.00039726,10]
[383765191,1757109233223,-400.0,0.00039726,10]
[383765192,1757109233239,-1325.01,0.00039726,10]
[383765193,1757109233254,-662.17,0.00039726,10]
[383765194,1757109233269,-475.33,0.00039726,10]
[383765195,1757109233284,-400.0,0.00039726,10]
[383765196,1757109233298,-580.54,0.00039726,10]
[383765197,1757109233313,-468.08,0.00039726,10]
[383765198,1757109233328,-425.71,0.00039726,10]
[383765199,1757109233342,-504.21,0.00039726,10]
[383765200,1757109233358,-525.15390374,0.00039726,10]
[383765201,1757109233372,-470.77,0.00039726,10]
[383765202,1757109233386,-417.63,0.00039726,10]
[383765203,1757109233401,-400.0,0.00039726,10]
[383765204,1757109233414,-400.0,0.00039726,10]
[383765205,1757109233429,-406.01,0.00039726,10]
[383765206,1757109233444,-400.0,0.00039726,10]
[383765207,1757109233458,-400.0,0.00039726,10]
[383765208,1757109233474,-560.94,0.00039726,10]
[383765209,1757109233488,-671.39,0.00039726,10]
[383765210,1757109233504,-660.54,0.00039726,10]
[383765211,1757109233518,-307.78329682,0.00039726,10]
[383765212,1757109233532,-400.0,0.00039726,10]
[383765213,1757109233546,-505.54,0.00039726,10]
[383765214,1757109233561,-400.0,0.00039726,2]
[383765215,1757109233576,-400.0,0.00039726,10]
[383765216,1757109233590,-400.0,0.00039726,10]
[383765217,1757109233606,-493.62,0.00039726,10]
[383765218,1757109233620,-400.0,0.00039726,10]
[383765219,1757109233634,-556.02,0.00039726,10]
[383765220,1757109233648,-400.0,0.00039726,10]
[383765221,1757109233662,-514.72,0.00039726,10]
[383765222,1757109233680,-456.07,0.00039726,10]
[383765223,1757109233696,-1553.38,0.00039726,10]
[383765224,1757109233713,-737.77,0.00039726,10]
[383765225,1757109233728,-400.0,0.00039726,10]
[383765226,1757109233744,-400.0,0.00039726,10]
[383765227,1757109233762,-521.95,0.00039726,10]
[383765228,1757109233776,-418.68,0.00039726,10]
[383765229,1757109233792,-583.81,0.00039726,10]
[383765230,1757109233808,-400.0,0.00039726,10]
[383765231,1757109233822,-340.61985075,0.00039726,10]
[383765232,1757109233838,-430.27,0.00039726,10]
[383765233,1757109233853,-498.62,0.00039726,10]
[383765234,1757109233869,-579.68,0.00039726,10]
[383765235,1757109233883,-425.45,0.00039726,10]
[383765236,1757109233899,-691.22,0.00039726,10]
[383765237,1757109233914,-601.12,0.00039726,10]
[383765238,1757109233928,-400.0,0.00039726,10]
[383765239,1757109233943,-400.0,0.00039726,10]
[383765240,1757109233956,-401.24,0.00039726,10]
[383765241,1757109233971,-607.93,0.00039726,10]
[383765242,1757109233985,-1060.4,0.00039726,10]
[383765243,1757109234001,-487.13,0.00039726,10]
[383765244,1757109234016,-400.0,0.00039726,10]
[383765245,1757109234030,-565.1,0.00039726,10]
[383765246,1757109234044,-400.0,0.00039726,10]
[383765247,1757109234059,-599.17,0.00039726,10]
[383765248,1757109234074,-408.11,0.00039726,10]
[383765249,1757109234088,-643.16,0.00039726,10]
[383765250,1757109234102,-400.0,0.00039726,10]
[383765251,1757109234116,-400.0,0.00039726,10]
[383765252,1757109234131,-567.22,0.00039726,10]
[383765253,1757109234146,-400.0,0.00039726,10]
[383765254,1757109234551,-400.0,0.00039726,10]
[383765255,1757109234618,-400.0,0.00039726,10]
[383765256,1757109234628,-400.0,0.00039726,10]
[383765257,1757109234637,-400.0,0.00039726,10]
[383765258,1757109234647,-587.89,0.00039726,10]
[383765259,1757109234656,-649.4,0.00039726,10]
[383765260,1757109234666,-400.0,0.00039726,10]
[383765261,1757109234675,-444.03,0.00039726,10]
[383765262,1757109234685,-540.45,0.00039726,10]
[383765263,1757109234694,-521.91,0.00039726,10]
[383765264,1757109234703,-400.0,0.00039726,10]
[383765265,1757109234713,-577.54,0.00039726,10]
[383765266,1757109234722,-400.0,0.00039726,10]
[383765267,1757109234732,-455.87,0.00039726,10]
[383765268,1757109234741,-400.0,0.00039726,10]
[383765269,1757109234752,-606.17,0.00039726,10]
[383765270,1757109234762,-400.0,0.00039726,10]
[383765271,1757109234771,-400.0,0.00039726,10]
[383765272,1757109234781,-552.86,0.00039726,10]
[383765273,1757109234790,-400.0,0.00039726,10]
[383765274,1757109234800,-738.19,0.00039726,10]
[383765275,1757109234810,-400.0,0.00039726,10]
[383765276,1757109234820,-400.0,0.00039726,10]
[383765277,1757109234830,-400.0,0.00039726,10]
[383765278,1757109234840,-485.13,0.00039726,10]
[383765279,1757109234850,-400.0,0.00039726,10]
[383765280,1757109234859,-400.0,0.00039726,10]
[383765281,1757109234869,-497.92,0.00039726,10]
[383765282,1757109234879,-534.68,0.00039726,10]
[383765283,1757109234888,-434.21,0.00039726,10]
[383765284,1757109234898,-400.0,0.00039726,10]
[383765285,1757109234907,-400.0,0.00039726,10]
[383765286,1757109234916,-400.0,0.00039726,10]
[383765287,1757109234926,-400.0,0.00039726,10]
[383765288,1757109234936,-400.0,0.00039726,10]
[383765289,1757109234945,-400.0,0.00039726,10]
[383765290,1757109234955,-697.19,0.00039726,10]
[383765291,1757109234965,-588.33,0.00039726,10]
[383765292,1757109234975,-400.0,0.00039726,10]
[383765293,1757109234986,-467.87,0.00039726,10]
[383765294,1757109234998,-400.0,0.00039726,10]
[383765295,1757109235007,-400.0,0.00039726,10]
[383765296,1757109235016,-400.0,0.00039726,10]
[383765297,1757109235027,-400.0,0.00039726,10]
[383765298,1757109235036,-400.0,0.00039726,10]
[383765299,1757109235046,-400.0,0.00039726,10]
[383765300,1757109235055,-434.97,0.00039726,10]
[383765301,1757109235065,-400.0,0.00039726,10]
[383765302,1757109235074,-547.22,0.00039726,10]
[383765303,1757109235084,-9387.3,0.00039726,10]
[383765304,1757109235093,-400.0,0.00039726,10]
[383765305,1757109235103,-438.16,0.00039726,10]
[383765306,1757109235113,-400.44,0.00039726,10]
[383765307,1757109235122,-467.62,0.00039726,10]
[383765308,1757109235132,-506.66,0.00039726,10]
[383765309,1757109235141,-400.0,0.00039726,10]
[383765310,1757109235151,-400.0,0.00039726,10]
[383765311,1757109235161,-422.62,0.00039726,10]
[383765312,1757109235170,-406.5,0.00039726,10]
[383765313,1757109235180,-773.54,0.00039726,10]
[383765314,1757109235190,-400.0,0.00039726,10]